bitfinex/quotes_BTCUSD_20220207
["timestamp","ask_amount","ask_price","bid_price","bid_amount"]
[1644270234804,0.33996585,44010.0,44007.0,0.00048242]
[1644270234805,0.27726171,44009.0,44007.0,0.19538415]
[1644270235010,0.0455,44008.0,44007.0,0.19538415]
[1644270235304,0.0455,44008.0,44007.0,0.19490173]
[1644270235704,0.0955,44008.0,44007.0,0.19490173]
[1644270236406,0.0955,44008.0,44006.0,0.19509992]
[1644270236605,0.0955,44008.0,44006.0,0.19490173]
[1644270238553,0.0955,44008.0,44005.0,0.00069828]
[1644270238554,0.38014961,44008.0,44005.0,0.00069828]
[1644270238753,0.38014961,44008.0,44005.0,0.00019819]
[1644270238954,0.38014961,44008.0,44005.0,0.00069828]
[1644270239153,0.38014961,44008.0,44005.0,0.00089647]
[1644270239754,0.38014961,44008.0,44005.0,0.00069828]
[1644270239954,0.38014961,44008.0,44003.0,0.0985438]
[1644270240159,0.33014961,44008.0,44004.0,0.00089771]
[1644270240358,0.33014961,44008.0,44004.0,0.00069829]
[1644270240657,0.05,44007.0,44004.0,0.00089771]
[1644270240899,0.1455,44007.0,44004.0,0.00089771]
[1644270241102,0.1455,44007.0,44004.0,0.00019942]
[1644270241303,0.14818967,44007.0,44003.0,0.29414479]
[1644270241701,0.04818967,44007.0,44003.0,0.29414479]
[1644270242101,0.04767066,44007.0,44003.0,0.29414479]
[1644270242303,0.04767066,44007.0,44003.0,0.29344649]
[1644270242500,0.09767066,44007.0,44003.0,0.29344649]
[1644270242704,0.09767066,44007.0,44003.0,0.2941448]
[1644270243501,0.04767066,44007.0,44003.0,0.29344649]
[1644270243703,0.04767066,44007.0,44003.0,0.2941448]
[1644270244551,0.04767066,44007.0,44003.0,0.09924211]
[1644270244751,0.04767066,44007.0,44002.0,0.18381786]
[1644270244953,0.04767066,44007.0,44003.0,0.00069831]
[1644270245153,0.05,44004.0,44003.0,0.00069831]
[1644270245366,0.10268967,44007.0,44003.0,0.00069831]
[1644270246059,0.10207464,44007.0,44001.0,0.26362716]
[1644270246255,0.10207464,44007.0,44001.0,0.26410748]
[1644270246455,0.05,44004.0,44001.0,0.26410748]
[1644270246657,0.04972652,44003.0,44001.0,0.26438096]
[1644270247154,0.04972652,44005.0,44001.0,0.26390064]
[1644270247757,0.00268967,44007.0,44004.0,0.00027348]
[1644270247961,0.00268967,44007.0,44005.0,0.33375716]
[1644270248154,0.00128755,44007.0,44005.0,0.33375716]
[1644270248409,0.00128755,44007.0,44006.0,0.090127]
[1644270248610,0.05101407,44007.0,44006.0,0.090127]
[1644270248813,0.00128755,44007.0,44005.0,0.090129]
[1644270249011,0.00128755,44007.0,44005.0,0.09040248]
[1644270249510,0.00128755,44007.0,44005.0,0.090129]
[1644270249711,0.00128755,44007.0,44006.0,0.00027348]
[1644270249912,0.00128755,44007.0,44005.0,0.08540248]
[1644270250311,0.00128755,44007.0,44003.0,0.24362716]
[1644270250516,0.00128755,44007.0,44004.0,0.085403]
[1644270251510,0.05,44005.0,44004.0,0.085403]
[1644270251712,0.00069822,44008.0,44004.0,0.085403]
[1644270251911,0.28257825,44011.0,44004.0,0.085403]
[1644270252152,0.38257825,44011.0,44003.0,0.24362716]
[1644270252352,0.00069822,44008.0,44004.0,0.085401]
[1644270252753,0.00069822,44008.0,44002.0,0.24362716]
[1644270253157,0.43257825,44011.0,44003.0,0.085405]
[1644270253352,0.53257825,44011.0,44002.0,0.24362716]
[1644270253555,0.00069822,44008.0,44002.0,0.24362716]
[1644270253755,0.00069822,44008.0,44001.0,0.2643255]
[1644270253955,0.26283982,44007.0,44002.0,0.085406]
[1644270254257,0.26283982,44007.0,44001.0,0.47802955]
[1644270254258,0.31283982,44007.0,44001.0,0.02069834]
[1644270254453,0.31283982,44007.0,44001.0,0.02]
[1644270254654,0.31283982,44007.0,44001.0,0.02069834]
[1644270254655,0.2947128,44006.0,44001.0,0.02069834]
[1644270254857,0.05,44002.0,44001.0,0.02069834]
[1644270255059,0.09498099,44002.0,44001.0,0.21557477]
[1644270255457,0.09498099,44002.0,44001.0,0.21609378]
[1644270255663,0.09498099,44002.0,44001.0,0.21539544]
[1644270256710,0.09498099,44002.0,44001.0,0.02051901]
[1644270256908,0.09498099,44002.0,44001.0,0.02]
[1644270257209,0.09498099,44002.0,44001.0,0.02051901]
[1644270257409,0.09498099,44002.0,44001.0,0.21539544]
[1644270257609,0.09498099,44002.0,44001.0,0.30080644]
[1644270258213,0.09498099,44002.0,44001.0,0.21539544]
[1644270258611,0.09498099,44002.0,44001.0,0.21487643]
[1644270259652,0.09498099,44002.0,44001.0,0.21539544]
[1644270260655,0.09498099,44002.0,44001.0,0.21537001]
[1644270261256,0.09498099,44002.0,44001.0,0.02051901]
[1644270261455,0.09498099,44002.0,44001.0,0.21537001]
[1644270261654,0.09498099,44002.0,44001.0,0.02051901]
[1644270262457,0.09498099,44002.0,44001.0,0.02]
[1644270262656,0.09498099,44002.0,44001.0,0.02051901]
[1644270262857,0.05,44002.0,44000.0,0.17794537]
[1644270263059,0.05,44002.0,44000.0,0.17774593]
[1644270263312,0.05,44002.0,43999.0,0.00089778]
[1644270263510,0.05,44002.0,43999.0,0.00069834]
[1644270263708,0.04948072,44002.0,44001.0,0.00051928]
[1644270266012,0.04948072,44002.0,44000.0,0.00019944]
[1644270266209,0.04948072,44002.0,44001.0,0.00051928]
[1644270266410,0.04948072,44002.0,44000.0,0.00019944]
[1644270266411,0.0492072,44002.0,44000.0,0.00019944]
[1644270266610,0.0492072,44002.0,43999.0,0.00081211]
[1644270266812,0.0492072,44002.0,43999.0,0.00142479]
[1644270267050,0.07325413,44003.0,43999.0,0.00122535]
[1644270267251,0.12246133,44003.0,43999.0,0.00061268]
[1644270267850,0.12246133,44003.0,43999.0,0.00062173]
[1644270268052,0.19311374,44002.0,43999.0,0.00062173]
[1644270268450,0.1926054,44002.0,43999.0,0.00062173]
[1644270268851,0.1926054,44002.0,43997.0,0.00019944]
[1644270269053,0.1926054,44002.0,43998.0,0.00062174]
[1644270269953,0.1926054,44002.0,43997.0,0.00019944]
[1644270270154,0.1926054,44002.0,43996.0,0.2438266]
[1644270270354,0.1926054,44002.0,43998.0,0.00062174]
[1644270271221,0.1926054,44002.0,43998.0,0.00019944]
[1644270271403,0.1926054,44002.0,43998.0,0.00066339]
[1644270271604,0.1926054,44002.0,43998.0,0.00086283]
[1644270271806,0.0492072,43999.0,43998.0,0.00086283]
[1644270272006,0.0492072,44001.0,43998.0,0.00066339]
[1644270272405,0.0492072,44001.0,43996.0,0.00019944]
[1644270272607,0.0492072,44001.0,43997.0,0.0006634]
[1644270272809,0.0492072,44001.0,43998.0,0.19484223]
[1644270273007,0.0492072,44001.0,43998.0,0.19504167]
[1644270273506,0.0492072,44001.0,43998.0,0.00019944]
[1644270273711,0.0455,44000.0,43997.0,0.19484223]
[1644270273909,0.0455,44000.0,43997.0,0.19550563]
[1644270274763,0.0455,44000.0,43997.0,0.19484223]
[1644270275362,0.0455,44000.0,43997.0,0.19504167]
[1644270276367,0.0455,44000.0,43997.0,0.19484223]
[1644270276368,0.0492072,43998.0,43997.0,0.19484223]
[1644270276567,0.0492072,44003.0,43997.0,0.085423]
[1644270276766,0.0492072,44003.0,44000.0,0.0007928]
[1644270276965,0.0492072,44003.0,43998.0,0.19504936]
[1644270277166,0.0492072,44003.0,43998.0,0.19484992]
[1644270277366,0.0492072,44003.0,43999.0,0.08542]
[1644270277566,0.0492072,44003.0,43999.0,0.08623716]
[1644270277966,0.0492072,44003.0,44001.0,0.0007928]
[1644270278404,0.0492072,44003.0,44000.0,0.00019944]
[1644270278604,0.0492072,44003.0,44000.0,0.00061772]
[1644270278807,0.0492072,44003.0,44000.0,0.00081716]
[1644270279008,0.0492072,44003.0,44000.0,0.00061772]
[1644270279606,0.0492072,44003.0,43998.0,0.00019944]
[1644270279805,0.0492072,44003.0,43999.0,0.00062088]
[1644270280806,0.0492072,44003.0,43998.0,0.00019944]
[1644270281006,0.00165381,44002.0,43999.0,0.00062088]
[1644270282158,0.00165381,44002.0,43998.0,0.00019944]
[1644270282357,0.00165381,44002.0,43998.0,0.00062089]
[1644270282958,0.23535229,44002.0,43998.0,0.00062089]
[1644270283158,0.28535229,44002.0,43998.0,0.00062089]
[1644270283360,0.28535229,44002.0,43997.0,0.00019944]
[1644270283559,0.05165381,44002.0,43998.0,0.00062057]
[1644270283758,0.00165381,44002.0,43998.0,0.00062057]
[1644270283958,0.00165381,44002.0,43998.0,0.00082001]
[1644270284560,0.00165381,44002.0,43998.0,0.00019944]
[1644270284759,0.00138028,44002.0,43998.0,0.00062057]
[1644270284959,0.00138028,44002.0,43998.0,0.00082001]
[1644270285159,0.00138028,44002.0,43998.0,0.00062057]
[1644270285813,0.08550506,44001.0,43998.0,0.00062057]
[1644270286008,0.05,44000.0,43998.0,0.00062057]
[1644270286808,0.05,44000.0,43997.0,0.00019944]
[1644270287012,0.05,44000.0,43997.0,0.00082006]
[1644270287208,0.05,44000.0,43997.0,0.00062062]
[1644270288012,0.04974983,44000.0,43995.0,0.00019944]
[1644270288209,0.04974983,44000.0,43996.0,0.00062063]
[1644270288609,0.00206509,44001.0,43996.0,0.00082007]
[1644270288811,0.05206509,44001.0,43996.0,0.00062063]
[1644270289209,0.00206509,44001.0,43995.0,0.00019944]
[1644270289411,0.00206509,44001.0,43996.0,0.00062063]
[1644270289954,0.0806139,44000.0,43996.0,0.00082007]
[1644270290355,0.1306139,44000.0,43996.0,0.00082007]
[1644270290554,0.1306139,44000.0,43996.0,0.00019944]
[1644270290755,0.1306139,44000.0,43996.0,0.00062063]
[1644270290956,0.05,44000.0,43996.0,0.00082007]
[1644270291158,0.00206509,44001.0,43996.0,0.00062063]
[1644270291357,0.0027021,43999.0,43997.0,0.0007928]
[1644270291556,0.0027021,43999.0,43998.0,0.085421]
[1644270291757,0.0027021,43999.0,43998.0,0.085425]
[1644270292557,0.0027021,43999.0,43997.0,0.00099224]
[1644270292757,0.0027021,43999.0,43997.0,0.0007928]
[1644270294007,0.0492072,43998.0,43997.0,0.0007928]
[1644270294812,0.0519093,43999.0,43997.0,0.0007928]
[1644270295707,0.05142666,43999.0,43996.0,0.00062063]
[1644270295909,0.05142666,43999.0,43997.0,0.0007928]
[1644270296109,0.05186104,43999.0,43997.0,0.0007928]
[1644270296910,0.00265384,43999.0,43996.0,0.00062063]
[1644270297160,0.00265384,43999.0,43997.0,0.0007928]
[1644270300810,0.056834,43998.0,43997.0,0.0007928]
[1644270303008,0.11366738,43998.0,43997.0,0.0007928]
[1644270304012,0.17050138,43998.0,43997.0,0.0007928]
[1644270304211,0.49427038,43998.0,43997.0,0.0007928]
[1644270304658,0.17050138,43998.0,43997.0,0.0007928]
[1644270304959,0.49427038,43998.0,43997.0,0.0007928]
[1644270306963,0.5253102,43998.0,43990.0,0.29235259]
[1644270307163,0.1060452,43992.0,43989.0,0.5971757]
[1644270307362,0.1497052,43992.0,43990.0,0.00020037]
[1644270307561,0.100498,43992.0,43990.0,0.00020037]
[1644270307766,0.54662832,43992.0,43990.0,0.00020037]
[1644270307963,0.95225622,43992.0,43990.0,0.00020037]
[1644270308163,1.00146342,43992.0,43988.0,0.01249361]
[1644270308413,0.0085113,43989.0,43988.0,0.01249361]
[1644270308613,0.0540113,43989.0,43988.0,0.01249361]
[1644270308811,0.3777803,43989.0,43988.0,0.01293085]
[1644270309013,0.75263777,43989.0,43988.0,0.01293085]
[1644270309213,0.46593623,43989.0,43988.0,0.01293085]
[1644270309416,0.14216723,43989.0,43988.0,0.01293085]
[1644270309814,0.14216723,43989.0,43988.0,0.01249361]
[1644270310519,0.4193765,43989.0,43988.0,0.01249361]
[1644270310711,0.7431455,43989.0,43988.0,0.01249361]
[1644270311116,0.7431455,43989.0,43988.0,0.01179075]
[1644270312159,0.46593623,43989.0,43988.0,0.01179075]
[1644270313561,0.056842,43988.0,43986.0,0.00066985]
[1644270313762,0.102342,43988.0,43986.0,0.00066985]
[1644270314360,0.08815593,43987.0,43986.0,0.00066985]
[1644270314562,0.056843,43986.0,43982.0,0.29161891]
[1644270314761,0.056843,43986.0,43985.0,0.00066987]
[1644270315810,0.056843,43986.0,43981.0,0.24190719]
[1644270316006,0.056843,43986.0,43983.0,0.00065271]
[1644270317006,0.056843,43986.0,43982.0,0.085475]
[1644270317207,0.056843,43986.0,43982.0,0.08612772]
[1644270318212,0.056848,43983.0,43982.0,0.085475]
[1644270318409,0.056848,43983.0,43982.0,0.08612772]
[1644270319412,0.056848,43983.0,43982.0,0.085475]
[1644270319658,0.08815593,43983.0,43982.0,0.085475]
[1644270320960,0.08815593,43983.0,43981.0,0.02]
[1644270321760,0.08822486,43983.0,43981.0,0.02]
[1644270322160,0.14507686,43983.0,43981.0,0.02]
[1644270322362,0.106851,43982.0,43981.0,0.00704876]
[1644270322561,0.152351,43982.0,43981.0,0.00704876]
[1644270322760,0.47612,43982.0,43981.0,0.00704876]
[1644270323418,0.47612,43982.0,43980.0,0.00020043]
[1644270323419,0.532984,43982.0,43980.0,0.00020043]
[1644270323610,0.532984,43982.0,43979.0,0.00065383]
[1644270323611,0.55123025,43981.0,43979.0,0.00065383]
[1644270323813,0.369269,43980.0,43979.0,0.00065383]
[1644270324010,0.419269,43980.0,43979.0,0.00065383]
[1644270324210,0.519269,43980.0,43974.0,0.00020043]
[1644270324511,0.45978522,43979.0,43977.0,0.00065385]
[1644270324710,1.12299886,43978.0,43977.0,0.00065385]
[1644270324911,1.31115479,43978.0,43977.0,0.00065385]
[1644270325309,1.31115479,43978.0,43972.0,0.00020043]
[1644270325512,0.106871,43973.0,43971.0,0.02]
[1644270325711,0.323769,43972.0,43971.0,0.02]
[1644270326110,0.369269,43972.0,43971.0,0.02]
[1644270326310,0.61886047,43972.0,43971.0,0.02]
[1644270326511,0.90217614,43972.0,43971.0,0.02]
[1644270326713,0.95904914,43972.0,43971.0,0.02]
[1644270327161,0.95904914,43972.0,43964.0,0.003]
[1644270327361,0.05687344,43971.0,43964.0,0.003]
[1644270327560,0.39193859,43969.0,43964.0,0.003]
[1644270327761,0.0455,43968.0,43964.0,0.003]
[1644270328064,0.38051411,43967.0,43964.0,0.003]
[1644270328260,0.42601411,43967.0,43964.0,0.003]
[1644270329163,0.3834127,43967.0,43964.0,0.003]
[1644270330165,0.42749153,43967.0,43964.0,0.003]
[1644270330363,0.47156863,43967.0,43964.0,0.00347965]
[1644270331216,0.79882457,43967.0,43964.0,0.00347965]
[1644270331414,0.84882457,43967.0,43964.0,0.003]
[1644270331614,0.84882457,43967.0,43964.0,0.00369914]
[1644270331816,0.57156863,43967.0,43964.0,0.00369914]
[1644270332216,0.57092679,43967.0,43964.0,0.00369914]
[1644270332617,0.57092679,43967.0,43964.0,0.003]
[1644270332817,0.84939786,43967.0,43964.0,0.00369914]
[1644270333817,0.84939786,43967.0,43964.0,0.003]
[1644270334119,0.84939786,43967.0,43964.0,0.00369914]
[1644270334956,0.84939786,43967.0,43964.0,0.003]
[1644270335157,0.84939786,43967.0,43964.0,0.00369914]
[1644270335561,0.57092679,43967.0,43964.0,0.00369914]
[1644270336164,0.57092679,43967.0,43964.0,0.003]
[1644270336361,0.57092679,43967.0,43964.0,0.00369914]
[1644270336960,0.00081561,43965.0,43964.0,0.00369914]
[1644270337162,0.57478233,43965.0,43964.0,0.00369914]
[1644270337362,0.57478233,43965.0,43964.0,0.003]
[1644270337363,0.56885943,43965.0,43964.0,0.003]
[1644270337763,0.61293826,43965.0,43964.0,0.003]
[1644270338414,0.65843826,43965.0,43964.0,0.003]
[1644270338614,0.55,43963.0,43962.0,0.08593432]
[1644270338823,0.723796,43962.0,43959.0,0.002]
[1644270339012,0.0455,43961.0,43959.0,0.002]
[1644270339220,0.323796,43960.0,43959.0,0.002]
[1644270339414,0.369296,43960.0,43959.0,0.002]
[1644270339617,0.62994983,43960.0,43959.0,0.002]
[1644270340017,0.5,43959.0,43956.0,0.001]
[1644270340216,0.426189,43958.0,43956.0,0.001]
[1644270340418,0.323796,43957.0,43956.0,0.001]
[1644270340616,0.419296,43957.0,43956.0,0.001]
[1644270340815,0.78049978,43957.0,43956.0,0.001]
[1644270341016,0.85833659,43957.0,43956.0,0.001]
[1644270341215,1.17087214,43957.0,43956.0,0.001]
[1644270342860,1.21494924,43957.0,43956.0,0.001]
[1644270343063,1.25902807,43957.0,43956.0,0.001]
[1644270344065,1.25841233,43957.0,43956.0,0.001]
[1644270344463,0.056893,43956.0,43953.0,0.00034372]
[1644270344663,0.533082,43955.0,43954.0,0.00019984]
[1644270344864,0.583082,43955.0,43953.0,0.00054356]
[1644270345064,0.323796,43954.0,43953.0,0.00034372]
[1644270345262,0.369296,43954.0,43953.0,0.00034372]
[1644270345663,0.483081,43954.0,43953.0,0.00034372]
[1644270346713,0.369296,43954.0,43953.0,0.00034372]
[1644270347108,0.0455,43954.0,43953.0,0.00034372]
[1644270348213,0.41495284,43954.0,43953.0,0.00034372]
[1644270348410,0.73874884,43954.0,43953.0,0.00034372]
[1644270349566,0.78874884,43954.0,43953.0,0.00034372]
[1644270350366,0.88874884,43954.0,43953.0,0.00034372]
[1644270350572,1.3,43953.0,43946.0,0.0011]
[1644270350772,1.3,43953.0,43948.0,0.0011]
[1644270350773,0.05,43951.0,43948.0,0.0011]
[1644270350966,0.64778589,43950.0,43948.0,0.0011]
[1644270351165,0.29864806,43949.0,43948.0,0.0011]
[1644270351567,0.62244406,43949.0,43948.0,0.0011]
[1644270351765,0.62244406,43949.0,43941.0,0.0211]
[1644270351766,0.50748184,43946.0,43941.0,0.0172948]
[1644270351969,0.44822663,43946.0,43941.0,0.0172948]
[1644270352368,0.28171641,43945.0,43941.0,0.0172948]
[1644270352967,0.33862341,43945.0,43941.0,0.0172948]
[1644270353167,0.33862341,43945.0,43941.0,0.01799358]
[1644270353424,0.08342186,43943.0,43941.0,0.01799358]
[1644270353628,0.19723386,43943.0,43941.0,0.01799358]
[1644270353823,0.08815593,43942.0,43941.0,0.01799358]
[1644270354022,0.14505993,43942.0,43941.0,0.01799358]
[1644270354222,0.14505993,43942.0,43941.0,0.0172948]
[1644270358660,0.08815593,43942.0,43941.0,0.0172948]
[1644270358961,0.08815593,43942.0,43941.0,0.1456558]
[1644270359461,0.08815593,43942.0,43941.0,0.0172948]
[1644270361017,0.08078394,43942.0,43941.0,0.0172948]
[1644270361217,0.0440771,43942.0,43941.0,0.0172948]
[1644270361617,0.08078394,43942.0,43941.0,0.0172948]
[1644270366165,0.08078394,43942.0,43941.0,0.1456588]
[1644270366866,0.01896998,43945.0,43942.0,0.112101]
[1644270367067,0.00069852,43957.0,43954.0,0.08790094]
[1644270367268,0.00069852,43957.0,43943.0,1.35]
[1644270367269,0.00069852,43957.0,43952.0,0.08918507]
[1644270367574,0.05081561,43965.0,43955.0,0.26801883]
[1644270367767,0.00069858,43958.0,43955.0,0.26801883]
[1644270367969,0.00069858,43958.0,43954.0,0.00019856]
[1644270368166,0.00069858,43958.0,43953.0,0.00269337]
[1644270368416,0.00069858,43958.0,43953.0,0.00249481]
[1644270368616,0.21305915,43959.0,43953.0,0.00249481]
[1644270369015,0.00069858,43958.0,43953.0,0.23436354]
[1644270369214,0.056888,43957.0,43953.0,0.30844119]
[1644270369414,0.056888,43957.0,43954.0,0.128306]
[1644270369614,0.056888,43957.0,43954.0,0.12850456]
[1644270370014,0.056888,43957.0,43954.0,0.00019856]
[1644270370221,0.056888,43957.0,43953.0,0.00249481]
[1644270371113,0.05069858,43958.0,43953.0,0.00249481]
[1644270371114,0.05,43963.0,43953.0,0.00249481]
[1644270371316,0.00069858,43957.0,43953.0,0.00269337]
[1644270371515,0.00069858,43957.0,43954.0,0.128307]
[1644270371713,0.00069858,43957.0,43954.0,0.12850556]
[1644270372165,0.24650052,43961.0,43954.0,0.12850556]
[1644270372364,0.01958257,43962.0,43954.0,0.11395976]
[1644270372663,0.00069858,43958.0,43954.0,0.00019856]
[1644270372868,0.00069858,43958.0,43953.0,0.00269337]
[1644270373462,0.01958257,43962.0,43954.0,0.185178]
[1644270373665,0.01958257,43962.0,43955.0,0.37981817]
[1644270373864,0.00069858,43958.0,43957.0,0.128294]
[1644270374663,0.056876,43960.0,43957.0,0.128294]
[1644270374864,0.056876,43960.0,43956.0,0.00019856]
[1644270375063,0.05757456,43960.0,43955.0,0.32294604]
[1644270375264,0.05757456,43960.0,43954.0,0.00019856]
[1644270375469,0.05757456,43960.0,43953.0,0.00269337]
[1644270375922,0.056876,43960.0,43953.0,0.00269337]
[1644270376222,0.056888,43957.0,43953.0,0.00269337]
[1644270376428,0.26272456,43954.0,43953.0,0.00249481]
[1644270377923,0.163784,43955.0,43953.0,0.00249481]
[1644270378323,0.113784,43955.0,43953.0,0.00249481]
[1644270378524,0.056892,43955.0,43953.0,0.00249481]
[1644270379323,0.323796,43954.0,43953.0,0.00249481]
[1644270381963,0.106892,43955.0,43953.0,0.00249481]
[1644270383730,0.056892,43955.0,43953.0,0.00249481]
[1644270383931,0.106892,43955.0,43953.0,0.00249481]
[1644270384529,0.323796,43954.0,43953.0,0.00249481]
[1644270386135,0.473796,43954.0,43950.0,0.00019856]
[1644270386329,0.473796,43954.0,43949.0,0.00047806]
[1644270386330,0.05,43951.0,43949.0,0.00047806]
[1644270386532,0.323796,43950.0,43949.0,0.00047806]
[1644270386731,0.373796,43950.0,43945.0,0.00019856]
[1644270386931,0.05,43946.0,43944.0,0.02005999]
[1644270387167,0.106906,43946.0,43944.0,0.02005999]
[1644270387568,0.05,43945.0,43944.0,0.02005999]
[1644270387970,0.05,43945.0,43942.0,0.00019856]
[1644270388169,0.323796,43944.0,43942.0,0.00047777]
[1644270388369,0.323796,43944.0,43942.0,0.00067633]
[1644270388573,0.323796,43944.0,43942.0,0.00047777]
[1644270388769,0.05,43943.0,43942.0,0.00047777]
[1644270388969,0.05,43943.0,43942.0,0.00067633]
[1644270389172,0.05,43943.0,43941.0,0.01998882]
[1644270389371,0.05,43942.0,43941.0,0.01979026]
[1644270389571,0.05,43942.0,43941.0,0.01998882]
[1644270389770,0.05,43942.0,43941.0,0.01979026]
[1644270390173,0.056905,43943.0,43941.0,0.01979026]
[1644270390371,0.05,43942.0,43941.0,0.01979026]
[1644270390571,0.0499121,43942.0,43941.0,0.01979026]
[1644270390818,0.056905,43943.0,43941.0,0.01979026]
[1644270391014,0.0499121,43942.0,43941.0,0.01979026]
[1644270392614,0.056905,43943.0,43941.0,0.01979026]
[1644270392816,0.01808955,43951.0,43941.0,0.14815326]
[1644270393015,0.01808955,43951.0,43942.0,0.4209556]
[1644270393315,0.01808955,43951.0,43943.0,0.2926006]
[1644270393616,0.01747376,43951.0,43949.0,0.22208104]
[1644270393817,0.2206091,43957.0,43949.0,0.22208104]
[1644270394213,0.056887,43955.0,43951.0,0.00249488]
[1644270394668,0.323796,43954.0,43952.0,0.07114209]
[1644270395270,0.05689,43953.0,43952.0,0.07114209]
[1644270396571,0.056885,43956.0,43952.0,0.07114209]
[1644270396772,0.21189426,43962.0,43952.0,0.07114209]
[1644270396773,0.323796,43960.0,43952.0,0.07134065]
[1644270396973,0.01882482,43962.0,43952.0,0.07134065]
[1644270397572,0.25200425,43962.0,43952.0,0.07134065]
[1644270397876,0.056879,43961.0,43952.0,0.07134065]
[1644270399818,0.34136461,43961.0,43952.0,0.07134065]
[1644270400018,0.323796,43960.0,43952.0,0.07134065]
[1644270400220,0.056888,43958.0,43951.0,0.07322842]
[1644270400418,0.323796,43957.0,43951.0,0.07322842]
[1644270400817,0.3737081,43957.0,43949.0,0.11649985]
[1644270401017,0.05689,43957.0,43948.0,0.01990361]
[1644270401222,0.05689,43957.0,43949.0,0.20654384]
[1644270401420,0.056888,43956.0,43949.0,0.20654384]
[1644270401821,0.1068001,43956.0,43950.0,0.08341439]
[1644270402062,0.1068001,43956.0,43949.0,0.00069984]
[1644270402262,0.1068001,43956.0,43945.0,0.2926006]
[1644270402463,0.1068001,43956.0,43949.0,0.00069983]
[1644270402664,0.056888,43956.0,43949.0,0.00069983]
[1644270402865,0.056888,43956.0,43951.0,0.24842331]
[1644270403363,0.056888,43956.0,43951.0,0.1984393]
[1644270403564,0.056888,43956.0,43952.0,0.07459136]
[1644270403964,0.323796,43955.0,43952.0,0.07459136]
[1644270404169,0.056894,43954.0,43952.0,0.07459136]
[1644270404365,0.323796,43953.0,43952.0,0.07459136]
[1644270404564,0.113787,43953.0,43952.0,0.07459136]
[1644270405468,0.056893,43954.0,43952.0,0.07459136]
[1644270405667,0.056893,43954.0,43951.0,0.19838302]
[1644270406113,0.056893,43954.0,43949.0,0.00069983]
[1644270406717,0.056893,43954.0,43952.0,0.07819092]
[1644270406916,0.056893,43954.0,43949.0,0.00069983]
[1644270407116,0.056893,43954.0,43948.0,0.41275216]
[1644270407315,0.056893,43954.0,43949.0,0.00069983]
[1644270408317,0.056893,43954.0,43948.0,0.41275216]
[1644270408519,0.056893,43954.0,43950.0,0.08822308]
[1644270409567,0.056893,43954.0,43953.0,0.00481835]
[1644270409968,0.380689,43954.0,43953.0,0.00481835]
[1644270410370,0.65619756,43954.0,43953.0,0.00481835]
[1644270412172,0.65619756,43954.0,43953.0,0.00474942]
[1644270414421,0.380689,43954.0,43953.0,0.00474942]
[1644270415022,0.65551598,43954.0,43953.0,0.00474942]
[1644270415425,0.380689,43954.0,43953.0,0.00474942]
[1644270416024,0.6552222,43954.0,43953.0,0.00474942]
[1644270417073,0.380689,43954.0,43953.0,0.00474942]
[1644270417874,0.056893,43954.0,43953.0,0.00474942]
[1644270419075,0.056893,43954.0,43953.0,0.07624036]
[1644270419974,0.056893,43954.0,43953.0,0.00474942]
[1644270424974,0.05688,43956.0,43952.0,0.21325384]
[1644270425469,0.05688,43956.0,43951.0,0.27981459]
[1644270426072,0.05688,43956.0,43951.0,0.06487625]
[1644270428070,0.05688,43956.0,43949.0,0.25310263]
[1644270428719,0.0499121,43953.0,43949.0,0.25244869]
[1644270428918,0.0499121,43953.0,43950.0,0.128322]
[1644270430126,0.0499121,43953.0,43952.0,0.0713338]
[1644270430321,0.00537657,43950.0,43949.0,0.13238872]
[1644270430521,0.00537657,43950.0,43949.0,0.0753917]
[1644270431123,0.00537657,43950.0,43949.0,0.07485234]
[1644270431423,0.00537657,43950.0,43949.0,0.28515602]
[1644270432466,0.00537657,43950.0,43949.0,0.07485234]
[1644270432672,0.00537657,43950.0,43948.0,0.00044845]
[1644270433668,0.00537657,43950.0,43949.0,0.0897979]
[1644270435274,0.00537657,43950.0,43949.0,0.33367079]
[1644270437322,0.00528757,43950.0,43949.0,0.33367079]
[1644270438927,0.00528757,43950.0,43949.0,0.0897979]
[1644270440880,0.00528757,43950.0,43949.0,0.33373666]
[1644270442381,0.00528757,43950.0,43949.0,0.0897979]
[1644270443001,0.00528757,43950.0,43947.0,0.00069938]
[1644270443002,0.46898667,43950.0,43947.0,0.00069938]
[1644270443185,0.46898667,43950.0,43942.0,0.0001978]
[1644270443186,0.056912,43947.0,43942.0,0.0001978]
[1644270443431,0.056912,43947.0,43941.0,0.05818779]
[1644270443432,0.0499121,43943.0,43941.0,0.05818779]
[1644270443627,0.369307,43942.0,43941.0,0.05818779]
[1644270443829,0.80986512,43942.0,43941.0,0.05818779]
[1644270444126,0.87784006,43942.0,43941.0,0.0172948]
[1644270444324,0.92784006,43942.0,43941.0,0.0172948]
[1644270445128,0.98475306,43942.0,43941.0,0.0172948]
[1644270445325,1.28990374,43942.0,43941.0,0.0172948]
[1644270447173,1.33990374,43942.0,43941.0,0.00068785]
[1644270448873,1.03475306,43942.0,43941.0,0.00068785]
[1644270455977,0.47622,43942.0,43941.0,0.00068785]
[1644270456178,0.43072,43942.0,43941.0,0.00068785]
[1644270458623,0.38072,43942.0,43941.0,0.00068785]
[1644270459616,0.43072,43942.0,43941.0,0.00068785]
[1644270460219,0.43072,43942.0,43933.0,0.00279607]
[1644270460420,0.056912,43938.0,43933.0,0.00279607]
[1644270460618,0.056912,43938.0,43933.0,0.00299391]
[1644270460819,0.06548213,43939.0,43933.0,0.00299391]
[1644270461020,0.0499121,43935.0,43933.0,0.00299391]
[1644270461225,0.06548213,43939.0,43932.0,0.01830478]
[1644270461419,0.0999121,43940.0,43934.0,0.00043035]
[1644270461620,0.0499121,43940.0,43934.0,0.00043035]
[1644270461819,0.056913,43935.0,43934.0,0.00043035]
[1644270462263,0.051913,43935.0,43934.0,0.00043035]
[1644270462464,0.051913,43935.0,43933.0,0.00019784]
[1644270462465,0.051913,43935.0,43932.0,0.00019784]
[1644270462664,0.051913,43935.0,43932.0,0.00043036]
[1644270462865,0.051913,43935.0,43932.0,0.0006282]
[1644270463768,0.051913,43935.0,43932.0,0.00019784]
[1644270463965,0.1018251,43935.0,43931.0,0.02065222]
[1644270464766,0.1018251,43935.0,43931.0,0.02]
[1644270464966,0.1018251,43935.0,43931.0,0.02065222]
[1644270465927,0.1018251,43935.0,43931.0,0.02]
[1644270466127,0.051913,43935.0,43931.0,0.33283846]
[1644270466332,0.051913,43935.0,43932.0,0.28808213]
[1644270466526,0.1018251,43935.0,43932.0,0.26406519]
[1644270466724,0.05691,43937.0,43932.0,0.26406519]